[Event "Titled Tuesday Blitz April 4 Early 2023"]
[White "Ramirez Vido, Robert Yorisan"]
[Black "Perez Gormaz, Matias"]
[WhiteFideId "3513823"]
[BlackFideId "3406342"]
[WhiteElo "2400"]
[BlackElo "2362"]
[Result "0-1"]
[Round "01"]
[TimeControl "180+2"]
[Date "2023.04.04"]
[WhiteClock "0:00:09"]
[BlackClock "0:00:27"]

1. f4 {[%clk 0:02:57]}  d5 {[%clk 0:02:54]} 2. Nf3 {[%clk 0:02:56]}  Bf5 {[%clk 0:02:53]} 3. g3 {[%clk 0:02:56]}  e6 {[%clk 0:02:52]} 4. Bg2 {[%clk 0:02:56]}  h6 {[%clk 0:02:53]} 5. d3 {[%clk 0:02:57]}  Nf6 {[%clk 0:02:53]} 6. O-O {[%clk 0:02:57]}  Be7 {[%clk 0:02:52]} 7. Ne5 {[%clk 0:02:47]}  Nbd7 {[%clk 0:02:49]} 8. Nc3 {[%clk 0:02:43]}  Bh7 {[%clk 0:02:33]} 9. Nxd7 {[%clk 0:02:37]}  Qxd7 {[%clk 0:02:33]} 10. e4 {[%clk 0:02:37]}  dxe4 {[%clk 0:02:28]} 11. dxe4 {[%clk 0:02:34]}  Bc5+ {[%clk 0:02:27]} 12. Kh1 {[%clk 0:02:34]}  Qxd1 {[%clk 0:02:24]} 13. Nxd1 {[%clk 0:01:59]}  Bxe4 {[%clk 0:02:20]} 14. Be3 {[%clk 0:01:57]}  Bb6 {[%clk 0:02:12]} 15. Bxb6 {[%clk 0:01:53]}  axb6 {[%clk 0:02:12]} 16. Nc3 {[%clk 0:01:49]}  Bxg2+ {[%clk 0:02:11]} 17. Kxg2 {[%clk 0:01:48]}  O-O-O {[%clk 0:02:07]} 18. Rad1 {[%clk 0:01:43]}  c6 {[%clk 0:02:04]} 19. Kf3 {[%clk 0:01:42]}  b5 {[%clk 0:02:03]} 20. Rxd8+ {[%clk 0:01:38]}  Rxd8 {[%clk 0:02:03]} 21. Rd1 {[%clk 0:01:39]}  Rxd1 {[%clk 0:01:55]} 22. Nxd1 {[%clk 0:01:40]}  Nd5 {[%clk 0:01:52]} 23. c3 {[%clk 0:01:37]}  Kd7 {[%clk 0:01:50]} 24. Ke4 {[%clk 0:01:34]}  Nb6 {[%clk 0:01:47]} 25. Kd4 {[%clk 0:01:14]}  Kd6 {[%clk 0:01:46]} 26. Nf2 {[%clk 0:01:12]}  c5+ {[%clk 0:01:40]} 27. Kd3 {[%clk 0:01:08]}  Nc4 {[%clk 0:01:34]} 28. Ne4+ {[%clk 0:01:04]}  Kd5 {[%clk 0:01:33]} 29. b3 {[%clk 0:00:59]}  Nb2+ {[%clk 0:01:32]} 30. Ke3 {[%clk 0:00:56]}  Nd1+ {[%clk 0:01:19]} 31. Kf3 {[%clk 0:00:54]}  f5 {[%clk 0:01:08]} 32. c4+ {[%clk 0:00:53]}  bxc4 {[%clk 0:01:01]} 33. bxc4+ {[%clk 0:00:54]}  Kc6 {[%clk 0:00:32]} 34. Nd2 {[%clk 0:00:44]}  b6 {[%clk 0:00:32]} 35. h3 {[%clk 0:00:37]}  Kd6 {[%clk 0:00:29]} 36. g4 {[%clk 0:00:37]}  g6 {[%clk 0:00:29]} 37. g5 {[%clk 0:00:36]}  h5 {[%clk 0:00:27]} 38. a3 {[%clk 0:00:32]}  e5 {[%clk 0:00:28]} 39. fxe5+ {[%clk 0:00:24]}  Kxe5 {[%clk 0:00:28]} 40. Ke2 {[%clk 0:00:24]}  Nc3+ {[%clk 0:00:28]} 41. Kd3 {[%clk 0:00:25]}  Ne4 {[%clk 0:00:29]} 42. Nf3+ {[%clk 0:00:19]}  Kf4 {[%clk 0:00:29]} 43. Nh4 {[%clk 0:00:09]}  Kxg5 {[%clk 0:00:28]} 44. Ke3 {[%clk 0:00:09]}  Kxh4 {[%clk 0:00:27]} 0-1


[Site "https://www.chess.com"]

[Event "Titled Tuesday Blitz April 4 Early 2023"]
[White "Matinian, Nikita"]
[Black "Mika, Tomasz"]
[WhiteFideId "24129100"]
[BlackFideId "1132970"]
[WhiteElo "2422"]
[BlackElo "2179"]
[Result "1-0"]
[Round "01"]
[TimeControl "180+2"]
[Date "2023.04.04"]
[WhiteClock "0:01:34"]
[BlackClock "0:00:01"]

1. e4 {[%clk 0:02:59]}  c6 {[%clk 0:02:57]} 2. d4 {[%clk 0:02:59]}  d5 {[%clk 0:02:57]} 3. e5 {[%clk 0:02:59]}  Bf5 {[%clk 0:02:57]} 4. Nf3 {[%clk 0:02:59]}  e6 {[%clk 0:02:57]} 5. Be2 {[%clk 0:02:58]}  c5 {[%clk 0:02:56]} 6. Be3 {[%clk 0:02:57]}  Qb6 {[%clk 0:02:46]} 7. Nc3 {[%clk 0:02:57]}  Nc6 {[%clk 0:02:44]} 8. Na4 {[%clk 0:02:55]}  Qa5+ {[%clk 0:02:42]} 9. c3 {[%clk 0:02:54]}  c4 {[%clk 0:02:42]} 10. O-O {[%clk 0:02:42]}  Nge7 {[%clk 0:02:29]} 11. b4 {[%clk 0:02:41]}  Qc7 {[%clk 0:02:19]} 12. Nh4 {[%clk 0:02:38]}  Be4 {[%clk 0:02:16]} 13. f3 {[%clk 0:02:35]}  Bg6 {[%clk 0:02:14]} 14. f4 {[%clk 0:02:34]}  Nf5 {[%clk 0:02:13]} 15. Nxf5 {[%clk 0:02:32]}  Bxf5 {[%clk 0:02:11]} 16. g4 {[%clk 0:02:33]}  Be4 {[%clk 0:02:10]} 17. f5 {[%clk 0:02:23]}  Be7 {[%clk 0:01:43]} 18. Nc5 {[%clk 0:02:16]}  Bxc5 {[%clk 0:01:31]} 19. bxc5 {[%clk 0:02:14]}  g6 {[%clk 0:01:07]} 20. fxe6 {[%clk 0:02:11]}  fxe6 {[%clk 0:01:03]} 21. Rf6 {[%clk 0:02:12]}  Qe7 {[%clk 0:00:53]} 22. g5 {[%clk 0:01:52]}  O-O-O {[%clk 0:00:52]} 23. Bg4 {[%clk 0:01:51]}  Bf5 {[%clk 0:00:50]} 24. Bxf5 {[%clk 0:01:50]}  gxf5 {[%clk 0:00:48]} 25. Qh5 {[%clk 0:01:49]}  Rdg8 {[%clk 0:00:37]} 26. Kh1 {[%clk 0:01:48]}  Qe8 {[%clk 0:00:27]} 27. Qxe8+ {[%clk 0:01:45]}  Rxe8 {[%clk 0:00:27]} 28. h4 {[%clk 0:01:44]}  Rhg8 {[%clk 0:00:24]} 29. h5 {[%clk 0:01:43]}  Re7 {[%clk 0:00:21]} 30. Kh2 {[%clk 0:01:42]}  Nb8 {[%clk 0:00:16]} 31. Kh3 {[%clk 0:01:41]}  Nd7 {[%clk 0:00:16]} 32. Kh4 {[%clk 0:01:40]}  Nxf6 {[%clk 0:00:15]} 33. exf6 {[%clk 0:01:40]}  Rf7 {[%clk 0:00:12]} 34. Bf4 {[%clk 0:01:41]}  h6 {[%clk 0:00:12]} 35. Rg1 {[%clk 0:01:36]}  hxg5+ {[%clk 0:00:12]} 36. Rxg5 {[%clk 0:01:37]}  Rgf8 {[%clk 0:00:08]} 37. Be5 {[%clk 0:01:36]}  Kd7 {[%clk 0:00:04]} 38. h6 {[%clk 0:01:35]}  Rh8 {[%clk 0:00:03]} 39. Kh5 {[%clk 0:01:34]}  Ke8 {[%clk 0:00:02]} 40. Rg7 {[%clk 0:01:34]}  Rh7 {[%clk 0:00:02]} 41. Kg6 {[%clk 0:01:34]}  Rxf6+ {[%clk 0:00:01]} 42. Bxf6 {[%clk 0:01:34]} 1-0


[Site "https://www.chess.com"]

[Event "Titled Tuesday Blitz April 4 Early 2023"]
[White "Deuer, Marius"]
[Black "Vlassov, Nikolai"]
[WhiteFideId "16236432"]
[BlackFideId "4103360"]
[WhiteElo "2163"]
[BlackElo "2324"]
[Result "0-1"]
[Round "01"]
[TimeControl "180+2"]
[Date "2023.04.04"]
[WhiteClock "0:00:18"]
[BlackClock "0:00:46"]

1. c4 {[%clk 0:02:56]}  e5 {[%clk 0:02:59]} 2. b3 {[%clk 0:02:55]}  Nc6 {[%clk 0:02:57]} 3. Bb2 {[%clk 0:02:56]}  f5 {[%clk 0:02:56]} 4. g3 {[%clk 0:02:55]}  Nf6 {[%clk 0:02:55]} 5. Bg2 {[%clk 0:02:55]}  Bc5 {[%clk 0:02:53]} 6. e3 {[%clk 0:02:55]}  d6 {[%clk 0:02:51]} 7. Ne2 {[%clk 0:02:55]}  h5 {[%clk 0:02:49]} 8. d4 {[%clk 0:02:56]}  Bb4+ {[%clk 0:02:49]} 9. Bc3 {[%clk 0:02:55]}  a5 {[%clk 0:02:46]} 10. Bxc6+ {[%clk 0:02:48]}  bxc6 {[%clk 0:02:45]} 11. dxe5 {[%clk 0:02:48]}  dxe5 {[%clk 0:02:45]} 12. Qxd8+ {[%clk 0:02:48]}  Kxd8 {[%clk 0:02:45]} 13. a3 {[%clk 0:02:41]}  Bxc3+ {[%clk 0:02:42]} 14. Nbxc3 {[%clk 0:02:42]}  Rb8 {[%clk 0:02:41]} 15. Rb1 {[%clk 0:02:38]}  Ke7 {[%clk 0:02:36]} 16. O-O {[%clk 0:02:30]}  Be6 {[%clk 0:02:35]} 17. f4 {[%clk 0:02:23]}  Ng4 {[%clk 0:02:30]} 18. Nd1 {[%clk 0:02:19]}  Bxc4 {[%clk 0:02:21]} 19. Re1 {[%clk 0:02:12]}  Rxb3 {[%clk 0:02:12]} 20. Rc1 {[%clk 0:01:52]}  Bd5 {[%clk 0:02:00]} 21. h3 {[%clk 0:01:02]}  Nxe3 {[%clk 0:01:57]} 22. Nec3 {[%clk 0:01:03]}  Nxd1 {[%clk 0:01:37]} 23. Nxd5+ {[%clk 0:01:01]}  cxd5 {[%clk 0:01:37]} 24. Rcxd1 {[%clk 0:00:42]}  e4 {[%clk 0:01:23]} 25. Rxd5 {[%clk 0:00:40]}  Kf6 {[%clk 0:01:15]} 26. Kf1 {[%clk 0:00:39]}  Rxg3 {[%clk 0:01:11]} 27. Rc1 {[%clk 0:00:39]}  Rf3+ {[%clk 0:01:10]} 28. Kg2 {[%clk 0:00:38]}  Rxf4 {[%clk 0:01:06]} 29. Rc6+ {[%clk 0:00:33]}  Kg5 {[%clk 0:01:05]} 30. Rxc7 {[%clk 0:00:34]}  g6 {[%clk 0:01:01]} 31. Rxa5 {[%clk 0:00:25]}  Rb8 {[%clk 0:00:59]} 32. Rc2 {[%clk 0:00:25]}  Rf3 {[%clk 0:00:50]} 33. Ra6 {[%clk 0:00:19]}  Rbb3 {[%clk 0:00:48]} 34. h4+ {[%clk 0:00:19]}  Kxh4 {[%clk 0:00:46]} 35. Rxg6 {[%clk 0:00:18]}  Rg3+ {[%clk 0:00:46]} 0-1


[Site "https://www.chess.com"]

[Event "Titled Tuesday Blitz April 4 Early 2023"]
[White "Skvortsov, Andrei"]
[Black "Silva Lucena, Cristian"]
[WhiteFideId "24108600"]
[BlackFideId "2232588"]
[WhiteElo "2259"]
[BlackElo "2223"]
[Result "1-0"]
[Round "01"]
[TimeControl "180+2"]
[Date "2023.04.04"]
[WhiteClock "0:00:12"]
[BlackClock "0:00:10"]

1. e4 {[%clk 0:03:00]}  c5 {[%clk 0:02:59]} 2. d4 {[%clk 0:03:00]}  cxd4 {[%clk 0:02:59]} 3. Qxd4 {[%clk 0:03:01]}  Nc6 {[%clk 0:02:58]} 4. Qd3 {[%clk 0:03:01]}  Nf6 {[%clk 0:02:57]} 5. Nc3 {[%clk 0:03:02]}  g6 {[%clk 0:02:55]} 6. Nf3 {[%clk 0:03:02]}  d6 {[%clk 0:02:55]} 7. Be2 {[%clk 0:03:02]}  Bg7 {[%clk 0:02:55]} 8. O-O {[%clk 0:03:02]}  O-O {[%clk 0:02:55]} 9. Nd5 {[%clk 0:03:03]}  Be6 {[%clk 0:02:49]} 10. c3 {[%clk 0:03:02]}  Rc8 {[%clk 0:02:48]} 11. Rd1 {[%clk 0:03:01]}  Re8 {[%clk 0:02:44]} 12. Bg5 {[%clk 0:02:53]}  Ng4 {[%clk 0:02:44]} 13. a4 {[%clk 0:02:45]}  h6 {[%clk 0:02:38]} 14. Bh4 {[%clk 0:02:44]}  Nce5 {[%clk 0:02:35]} 15. Nxe5 {[%clk 0:02:43]}  Bxe5 {[%clk 0:02:27]} 16. h3 {[%clk 0:02:34]}  Bxd5 {[%clk 0:02:13]} 17. Bxg4 {[%clk 0:02:11]}  Be6 {[%clk 0:01:47]} 18. Bxe6 {[%clk 0:02:02]}  fxe6 {[%clk 0:01:48]} 19. Qe3 {[%clk 0:02:00]}  Kg7 {[%clk 0:01:38]} 20. Qxa7 {[%clk 0:01:58]}  Qc7 {[%clk 0:01:34]} 21. Qe3 {[%clk 0:01:54]}  Qc5 {[%clk 0:01:32]} 22. Qxc5 {[%clk 0:01:48]}  Rxc5 {[%clk 0:01:33]} 23. f3 {[%clk 0:01:45]}  Bf4 {[%clk 0:01:32]} 24. Bf2 {[%clk 0:01:45]}  Rc6 {[%clk 0:01:31]} 25. g3 {[%clk 0:01:39]}  Bg5 {[%clk 0:01:31]} 26. e5 {[%clk 0:01:32]}  dxe5 {[%clk 0:01:18]} 27. Re1 {[%clk 0:01:31]}  Bf6 {[%clk 0:01:15]} 28. Re4 {[%clk 0:01:30]}  Rd8 {[%clk 0:01:12]} 29. Rae1 {[%clk 0:01:23]}  Rd2 {[%clk 0:01:10]} 30. R1e2 {[%clk 0:01:23]}  Rd1+ {[%clk 0:01:10]} 31. Kg2 {[%clk 0:01:20]}  Rcd6 {[%clk 0:01:10]} 32. Rb4 {[%clk 0:01:16]}  Rd7 {[%clk 0:01:11]} 33. Bb6 {[%clk 0:01:00]}  h5 {[%clk 0:01:10]} 34. Be3 {[%clk 0:00:57]}  Kf7 {[%clk 0:01:10]} 35. h4 {[%clk 0:00:57]}  R1d3 {[%clk 0:01:09]} 36. Re4 {[%clk 0:00:56]}  Rd1 {[%clk 0:01:08]} 37. Bf2 {[%clk 0:00:55]}  Ra1 {[%clk 0:01:07]} 38. Re1 {[%clk 0:00:54]}  Ra2 {[%clk 0:01:07]} 39. R1e2 {[%clk 0:00:52]}  Rd6 {[%clk 0:01:03]} 40. Rb4 {[%clk 0:00:49]}  Rd7 {[%clk 0:01:03]} 41. Be3 {[%clk 0:00:43]}  Ra1 {[%clk 0:01:00]} 42. Kh3 {[%clk 0:00:36]}  Rh1+ {[%clk 0:01:00]} 43. Rh2 {[%clk 0:00:29]}  Rhd1 {[%clk 0:01:01]} 44. Re4 {[%clk 0:00:24]}  R1d3 {[%clk 0:00:58]} 45. Re2 {[%clk 0:00:23]}  Rd1 {[%clk 0:00:59]} 46. a5 {[%clk 0:00:21]}  Ra1 {[%clk 0:00:58]} 47. Bb6 {[%clk 0:00:21]}  Rf1 {[%clk 0:00:56]} 48. Kg2 {[%clk 0:00:21]}  Rfd1 {[%clk 0:00:55]} 49. Rf2 {[%clk 0:00:21]}  R7d2 {[%clk 0:00:50]} 50. Ree2 {[%clk 0:00:20]}  Rd5 {[%clk 0:00:49]} 51. c4 {[%clk 0:00:20]}  R5d3 {[%clk 0:00:48]} 52. Re3 {[%clk 0:00:19]}  Rd6 {[%clk 0:00:41]} 53. Ree2 {[%clk 0:00:17]}  Rc6 {[%clk 0:00:40]} 54. Rc2 {[%clk 0:00:17]}  Rd3 {[%clk 0:00:38]} 55. b4 {[%clk 0:00:17]}  Rb3 {[%clk 0:00:37]} 56. b5 {[%clk 0:00:18]}  Rc8 {[%clk 0:00:37]} 57. Rfe2 {[%clk 0:00:15]}  e4 {[%clk 0:00:34]} 58. fxe4 {[%clk 0:00:13]}  Be5 {[%clk 0:00:33]} 59. Rf2+ {[%clk 0:00:13]}  Kg7 {[%clk 0:00:33]} 60. Rf3 {[%clk 0:00:13]}  Rxb5 {[%clk 0:00:32]} 61. cxb5 {[%clk 0:00:10]}  Rxc2+ {[%clk 0:00:31]} 62. Rf2 {[%clk 0:00:11]}  Rc4 {[%clk 0:00:30]} 63. Ra2 {[%clk 0:00:10]}  Rb4 {[%clk 0:00:29]} 64. a6 {[%clk 0:00:10]}  bxa6 {[%clk 0:00:27]} 65. bxa6 {[%clk 0:00:11]}  Rxb6 {[%clk 0:00:11]} 66. a7 {[%clk 0:00:11]}  Rb5 {[%clk 0:00:10]} 67. a8=Q {[%clk 0:00:11]}  Rb3 {[%clk 0:00:10]} 68. Qa4 {[%clk 0:00:11]}  Rxg3+ {[%clk 0:00:10]} 69. Kf1 {[%clk 0:00:12]}  Rg4 {[%clk 0:00:10]} 70. Qd7 {[%clk 0:00:11]}  Kf7 {[%clk 0:00:09]} 71. Rf2+ {[%clk 0:00:12]}  Bf6 {[%clk 0:00:10]} 72. e5 {[%clk 0:00:12]}  Rxh4 {[%clk 0:00:10]} 73. Rxf6+ {[%clk 0:00:12]} 1-0


[Site "https://www.chess.com"]

[Event "Titled Tuesday Blitz April 4 Early 2023"]
[White "Toktomushev, Teimur"]
[Black "Thomforde-Toates, Noah"]
[WhiteFideId "14176726"]
[BlackFideId "30951992"]
[WhiteElo "2116"]
[BlackElo "2662"]
[Result "0-1"]
[Round "01"]
[TimeControl "180+2"]
[Date "2023.04.04"]
[WhiteClock "0:00:04"]
[BlackClock "0:00:59"]

1. d4 {[%clk 0:03:00]}  Nf6 {[%clk 0:02:58]} 2. c4 {[%clk 0:03:00]}  g6 {[%clk 0:02:58]} 3. Nc3 {[%clk 0:03:00]}  Bg7 {[%clk 0:02:58]} 4. e4 {[%clk 0:03:00]}  d6 {[%clk 0:02:58]} 5. f3 {[%clk 0:03:00]}  O-O {[%clk 0:02:59]} 6. Be3 {[%clk 0:03:01]}  Nc6 {[%clk 0:02:59]} 7. Nge2 {[%clk 0:03:01]}  a6 {[%clk 0:03:00]} 8. Qd2 {[%clk 0:02:59]}  Na5 {[%clk 0:03:00]} 9. Nc1 {[%clk 0:02:56]}  Nd7 {[%clk 0:02:58]} 10. Nb3 {[%clk 0:02:50]}  c5 {[%clk 0:02:54]} 11. dxc5 {[%clk 0:02:42]}  Nxb3 {[%clk 0:02:54]} 12. axb3 {[%clk 0:02:42]}  Nxc5 {[%clk 0:02:54]} 13. Ra3 {[%clk 0:02:40]}  f5 {[%clk 0:02:54]} 14. b4 {[%clk 0:02:08]}  Nd7 {[%clk 0:02:43]} 15. Be2 {[%clk 0:02:01]}  Ne5 {[%clk 0:02:41]} 16. f4 {[%clk 0:01:33]}  Nc6 {[%clk 0:02:31]} 17. b5 {[%clk 0:01:27]}  Nb4 {[%clk 0:02:03]} 18. O-O {[%clk 0:01:02]}  a5 {[%clk 0:01:36]} 19. Nd5 {[%clk 0:00:36]}  Nxd5 {[%clk 0:01:32]} 20. exd5 {[%clk 0:00:37]}  e5 {[%clk 0:01:31]} 21. b4 {[%clk 0:00:19]}  exf4 {[%clk 0:01:29]} 22. Bd4 {[%clk 0:00:12]}  Bxd4+ {[%clk 0:01:18]} 23. Qxd4 {[%clk 0:00:13]}  Re8 {[%clk 0:01:19]} 24. Bf3 {[%clk 0:00:10]}  Bd7 {[%clk 0:01:14]} 25. Rfa1 {[%clk 0:00:09]}  Re3 {[%clk 0:01:08]} 26. Rxe3 {[%clk 0:00:04]}  fxe3 {[%clk 0:01:08]} 27. bxa5 {[%clk 0:00:03]}  Rxa5 {[%clk 0:01:06]} 28. Rxa5 {[%clk 0:00:04]}  Qxa5 {[%clk 0:01:07]} 29. Qxe3 {[%clk 0:00:05]}  Qa1+ {[%clk 0:01:07]} 30. Kf2 {[%clk 0:00:04]}  Qb2+ {[%clk 0:01:06]} 31. Kg3 {[%clk 0:00:03]}  Qf6 {[%clk 0:01:04]} 32. h3 {[%clk 0:00:02]}  h5 {[%clk 0:01:03]} 33. Kh2 {[%clk 0:00:03]}  h4 {[%clk 0:01:02]} 34. Qf4 {[%clk 0:00:03]}  g5 {[%clk 0:01:02]} 35. Qe3 {[%clk 0:00:03]}  Kg7 {[%clk 0:01:01]} 36. c5 {[%clk 0:00:03]}  dxc5 {[%clk 0:00:58]} 37. Qxc5 {[%clk 0:00:04]}  Qe5+ {[%clk 0:00:58]} 38. Kh1 {[%clk 0:00:04]}  g4 {[%clk 0:00:58]} 39. hxg4 {[%clk 0:00:04]}  fxg4 {[%clk 0:00:59]} 0-1


[Site "https://www.chess.com"]

[Event "Titled Tuesday Blitz April 4 Early 2023"]
[White "Szabo, Marcell"]
[Black "Perez Rodriguez, Jennifer"]
[WhiteFideId "2072033"]
[BlackFideId "3507831"]
[WhiteElo "1795"]
[BlackElo "2116"]
[Result "1/2-1/2"]
[Round "01"]
[TimeControl "180+2"]
[Date "2023.04.04"]
[WhiteClock "0:00:57"]
[BlackClock "0:00:02"]

1. e4 {[%clk 0:02:58]}  e5 {[%clk 0:02:58]} 2. Nf3 {[%clk 0:02:58]}  Nc6 {[%clk 0:02:58]} 3. Bc4 {[%clk 0:02:58]}  Bc5 {[%clk 0:02:58]} 4. c3 {[%clk 0:02:58]}  Nf6 {[%clk 0:02:57]} 5. O-O {[%clk 0:02:59]}  Nxe4 {[%clk 0:02:56]} 6. d4 {[%clk 0:03:00]}  exd4 {[%clk 0:02:41]} 7. cxd4 {[%clk 0:02:57]}  Bb6 {[%clk 0:02:34]} 8. Re1 {[%clk 0:02:57]}  d5 {[%clk 0:02:33]} 9. Bxd5 {[%clk 0:02:57]}  Qxd5 {[%clk 0:02:28]} 10. Nc3 {[%clk 0:02:58]}  Qa5 {[%clk 0:02:16]} 11. Rxe4+ {[%clk 0:02:58]}  Be6 {[%clk 0:02:15]} 12. d5 {[%clk 0:02:58]}  O-O-O {[%clk 0:02:14]} 13. Bg5 {[%clk 0:02:56]}  Bxd5 {[%clk 0:01:59]} 14. Bxd8 {[%clk 0:02:12]}  Bxe4 {[%clk 0:01:59]} 15. Bxc7 {[%clk 0:02:12]}  Bxf3 {[%clk 0:01:34]} 16. Bxb6 {[%clk 0:02:12]}  Bxd1 {[%clk 0:01:33]} 17. Bxa5 {[%clk 0:02:12]}  Bh5 {[%clk 0:01:23]} 18. Re1 {[%clk 0:01:58]}  Bg6 {[%clk 0:01:05]} 19. b4 {[%clk 0:01:44]}  b6 {[%clk 0:01:04]} 20. Rc1 {[%clk 0:01:37]}  Kb7 {[%clk 0:01:00]} 21. Nb5 {[%clk 0:01:30]}  Rd8 {[%clk 0:00:42]} 22. Na3 {[%clk 0:01:14]}  bxa5 {[%clk 0:00:41]} 23. b5 {[%clk 0:01:15]}  Nb4 {[%clk 0:00:40]} 24. Nc4 {[%clk 0:01:16]}  Bd3 {[%clk 0:00:30]} 25. Nxa5+ {[%clk 0:01:15]}  Kb6 {[%clk 0:00:29]} 26. Nb3 {[%clk 0:01:15]}  Kxb5 {[%clk 0:00:29]} 27. a3 {[%clk 0:01:12]}  Nc2 {[%clk 0:00:27]} 28. h4 {[%clk 0:01:06]}  Nxa3 {[%clk 0:00:26]} 29. Ra1 {[%clk 0:01:04]}  Kb4 {[%clk 0:00:26]} 30. Nd2 {[%clk 0:00:58]}  a5 {[%clk 0:00:26]} 31. Nf3 {[%clk 0:00:58]}  a4 {[%clk 0:00:26]} 32. Ne5 {[%clk 0:00:59]}  Be4 {[%clk 0:00:23]} 33. Nxf7 {[%clk 0:00:58]}  Rd2 {[%clk 0:00:20]} 34. Ng5 {[%clk 0:00:59]}  Bd3 {[%clk 0:00:18]} 35. Nf3 {[%clk 0:00:59]}  Rb2 {[%clk 0:00:18]} 36. Ne5 {[%clk 0:00:59]}  Rb1+ {[%clk 0:00:17]} 37. Rxb1+ {[%clk 0:00:53]}  Bxb1 {[%clk 0:00:18]} 38. Nc6+ {[%clk 0:00:54]}  Kb5 {[%clk 0:00:18]} 39. Nd4+ {[%clk 0:00:54]}  Kc4 {[%clk 0:00:19]} 40. Nc6 {[%clk 0:00:51]}  Nb5 {[%clk 0:00:18]} 41. Na5+ {[%clk 0:00:48]}  Kc3 {[%clk 0:00:17]} 42. Nb7 {[%clk 0:00:46]}  a3 {[%clk 0:00:18]} 43. Nc5 {[%clk 0:00:47]}  a2 {[%clk 0:00:18]} 44. Na4+ {[%clk 0:00:48]}  Kb3 {[%clk 0:00:17]} 45. Nc5+ {[%clk 0:00:48]}  Kc4 {[%clk 0:00:17]} 46. Ne6 {[%clk 0:00:47]}  a1=Q {[%clk 0:00:18]} 47. Nf4 {[%clk 0:00:48]}  Bf5+ {[%clk 0:00:18]} 48. Kh2 {[%clk 0:00:48]}  Qd4 {[%clk 0:00:18]} 49. Kg3 {[%clk 0:00:49]}  Qd3+ {[%clk 0:00:19]} 50. Nxd3 {[%clk 0:00:49]}  Kxd3 {[%clk 0:00:20]} 51. Kf4 {[%clk 0:00:49]}  Be6 {[%clk 0:00:19]} 52. Ke5 {[%clk 0:00:46]}  Bc4 {[%clk 0:00:19]} 53. f4 {[%clk 0:00:46]}  Ke3 {[%clk 0:00:19]} 54. g4 {[%clk 0:00:46]}  Kf3 {[%clk 0:00:18]} 55. g5 {[%clk 0:00:46]}  Kg4 {[%clk 0:00:19]} 56. f5 {[%clk 0:00:46]}  Kxh4 {[%clk 0:00:17]} 57. f6 {[%clk 0:00:46]}  gxf6+ {[%clk 0:00:18]} 58. Kxf6 {[%clk 0:00:47]}  Kg4 {[%clk 0:00:16]} 59. g6 {[%clk 0:00:47]}  Bd3 {[%clk 0:00:17]} 60. gxh7 {[%clk 0:00:47]}  Bxh7 {[%clk 0:00:17]} 61. Ke5 {[%clk 0:00:48]}  Bf5 {[%clk 0:00:16]} 62. Kf6 {[%clk 0:00:48]}  Nc3 {[%clk 0:00:14]} 63. Kg7 {[%clk 0:00:49]}  Kg5 {[%clk 0:00:12]} 64. Kh8 {[%clk 0:00:50]}  Ne4 {[%clk 0:00:09]} 65. Kg8 {[%clk 0:00:51]}  Kf6 {[%clk 0:00:08]} 66. Kh8 {[%clk 0:00:52]}  Ng5 {[%clk 0:00:06]} 67. Kg8 {[%clk 0:00:53]}  Nf7 {[%clk 0:00:05]} 68. Kf8 {[%clk 0:00:53]}  Bh7 {[%clk 0:00:05]} 69. Ke8 {[%clk 0:00:53]}  Ke6 {[%clk 0:00:03]} 70. Kf8 {[%clk 0:00:54]}  Kf6 {[%clk 0:00:01]} 71. Ke8 {[%clk 0:00:55]}  Bg6 {[%clk 0:00:02]} 72. Kf8 {[%clk 0:00:56]}  Ng5 {[%clk 0:00:02]} 73. Kg8 {[%clk 0:00:57]} 1/2-1/2


[Site "https://www.chess.com"]

[Event "Titled Tuesday Blitz April 4 Early 2023"]
[White "Srinath, Rao S.V."]
[Black "Topalov, Aleksandar"]
[WhiteFideId "5028876"]
[BlackFideId "925659"]
[WhiteElo "2196"]
[BlackElo "2151"]
[Result "1/2-1/2"]
[Round "01"]
[TimeControl "180+2"]
[Date "2023.04.04"]
[WhiteClock "0:00:08"]
[BlackClock "0:00:04"]

1. d4 {[%clk 0:02:59]}  Nf6 {[%clk 0:02:59]} 2. Nc3 {[%clk 0:02:58]}  d5 {[%clk 0:02:52]} 3. Bf4 {[%clk 0:02:58]}  Bf5 {[%clk 0:02:49]} 4. e3 {[%clk 0:02:56]}  c6 {[%clk 0:02:47]} 5. Nf3 {[%clk 0:02:56]}  Nbd7 {[%clk 0:02:47]} 6. Ne5 {[%clk 0:02:52]}  h5 {[%clk 0:02:42]} 7. Bd3 {[%clk 0:02:46]}  Bxd3 {[%clk 0:02:41]} 8. Qxd3 {[%clk 0:02:46]}  e6 {[%clk 0:02:39]} 9. O-O-O {[%clk 0:02:41]}  Nxe5 {[%clk 0:02:37]} 10. dxe5 {[%clk 0:02:32]}  Nd7 {[%clk 0:02:35]} 11. e4 {[%clk 0:02:24]}  Qa5 {[%clk 0:02:27]} 12. Kb1 {[%clk 0:02:14]}  Bb4 {[%clk 0:02:14]} 13. exd5 {[%clk 0:02:13]}  cxd5 {[%clk 0:02:14]} 14. Ne4 {[%clk 0:02:06]}  O-O-O {[%clk 0:01:56]} 15. Ng5 {[%clk 0:01:57]}  Rdf8 {[%clk 0:01:44]} 16. a3 {[%clk 0:01:44]}  Be7 {[%clk 0:01:42]} 17. Rhe1 {[%clk 0:01:35]}  Kb8 {[%clk 0:01:38]} 18. Qf3 {[%clk 0:01:28]}  Qb6 {[%clk 0:01:31]} 19. h4 {[%clk 0:01:19]}  Nc5 {[%clk 0:01:30]} 20. Be3 {[%clk 0:01:16]}  Qc7 {[%clk 0:01:26]} 21. Bd4 {[%clk 0:01:05]}  Bxg5 {[%clk 0:01:22]} 22. hxg5 {[%clk 0:01:04]}  g6 {[%clk 0:01:16]} 23. Qe3 {[%clk 0:01:01]}  Rc8 {[%clk 0:01:12]} 24. Re2 {[%clk 0:00:26]}  b6 {[%clk 0:01:11]} 25. Qc3 {[%clk 0:00:19]}  Ne4 {[%clk 0:01:07]} 26. Qe3 {[%clk 0:00:19]}  Qe7 {[%clk 0:00:59]} 27. f3 {[%clk 0:00:19]}  Nc5 {[%clk 0:00:54]} 28. Bxc5 {[%clk 0:00:13]}  Rxc5 {[%clk 0:00:52]} 29. Rd4 {[%clk 0:00:13]}  Rhc8 {[%clk 0:00:49]} 30. c3 {[%clk 0:00:13]}  Qd7 {[%clk 0:00:41]} 31. Red2 {[%clk 0:00:13]}  Qb5 {[%clk 0:00:40]} 32. Qd3 {[%clk 0:00:13]}  Qe8 {[%clk 0:00:30]} 33. g3 {[%clk 0:00:13]}  Qe7 {[%clk 0:00:30]} 34. f4 {[%clk 0:00:13]}  Qc7 {[%clk 0:00:25]} 35. Ka2 {[%clk 0:00:11]}  Kb7 {[%clk 0:00:23]} 36. Ra4 {[%clk 0:00:11]}  Kb8 {[%clk 0:00:19]} 37. Rd4 {[%clk 0:00:10]}  Kb7 {[%clk 0:00:19]} 38. a4 {[%clk 0:00:10]}  Qc6 {[%clk 0:00:16]} 39. Ka3 {[%clk 0:00:09]}  Rc4 {[%clk 0:00:16]} 40. Rxc4 {[%clk 0:00:09]}  Qxc4 {[%clk 0:00:16]} 41. Qxc4 {[%clk 0:00:10]}  Rxc4 {[%clk 0:00:16]} 42. Rd4 {[%clk 0:00:09]}  Rc5 {[%clk 0:00:14]} 43. Kb3 {[%clk 0:00:09]}  Rc8 {[%clk 0:00:12]} 44. c4 {[%clk 0:00:08]}  dxc4+ {[%clk 0:00:11]} 45. Kc3 {[%clk 0:00:09]}  Rc7 {[%clk 0:00:09]} 46. Rd8 {[%clk 0:00:09]}  a6 {[%clk 0:00:09]} 47. Kb4 {[%clk 0:00:08]}  Ka7 {[%clk 0:00:05]} 48. Rd6 {[%clk 0:00:07]}  Kb7 {[%clk 0:00:05]} 49. a5 {[%clk 0:00:08]}  b5 {[%clk 0:00:04]} 50. Rb6+ {[%clk 0:00:07]}  Ka7 {[%clk 0:00:04]} 51. Rd6 {[%clk 0:00:08]}  Kb7 {[%clk 0:00:05]} 52. Rd8 {[%clk 0:00:08]}  Ka7 {[%clk 0:00:05]} 53. Rd6 {[%clk 0:00:08]}  Kb7 {[%clk 0:00:04]} 1/2-1/2


[Site "https://www.chess.com"]